bitfinex/quotes_ETHUSD_20240630
["timestamp","ask_amount","ask_price","bid_price","bid_amount"]
[1719710942156,0.03296674,3386.9,3386.8,0.86]
[1719710942356,1.67821478,3386.9,3386.4,3.0]
[1719710942536,1.67821478,3386.9,3386.1,0.55]
[1719710942537,1.64524804,3386.9,3386.5,0.86]
[1719710942737,0.03300003,3386.8,3386.5,0.86]
[1719710943145,2.2618,3387.0,3386.7,0.86]
[1719710943985,19.58993058,3387.1,3386.7,0.86]
[1719710944673,19.58993058,3387.1,3386.9,0.86]
[1719710945547,19.58993058,3387.2,3386.9,0.86]
[1719710947140,19.58993058,3387.2,3386.5,0.86]
[1719710947341,19.58993058,3387.2,3386.6,0.55]
[1719710950959,19.58993058,3387.4,3386.6,0.55]
[1719710953571,0.86,3387.3,3386.6,0.55]
[1719710953773,0.86,3387.3,3386.5,0.55]
[1719710954696,19.58993058,3387.4,3386.6,2.4991]
[1719710954836,19.58993058,3387.4,3386.7,0.55]
[1719710955031,19.58993058,3387.4,3386.7,3.55]
[1719710955270,2.2618,3387.3,3386.7,3.55]
[1719710955970,0.03314983,3387.2,3386.7,3.55]
[1719710956171,0.89314983,3387.2,3386.7,3.0]
[1719710956498,0.89314983,3387.2,3386.2,2.4991]
[1719710956693,2.27448804,3387.1,3386.2,5.4991]
[1719710956999,0.86,3387.0,3386.2,5.4991]
[1719710957195,2.4803,3386.9,3386.2,2.4991]
[1719710957508,2.51338315,3386.9,3386.2,2.4991]
[1719710957858,2.51338315,3386.9,3386.3,0.55]
[1719710958059,2.51338315,3386.9,3386.3,3.55]
[1719710959603,4.0153288,3386.9,3386.3,3.0]
[1719710959823,4.0153288,3386.9,3386.0,2.2521]
[1719710959957,4.0153288,3386.9,3386.1,0.55]
[1719710960274,4.0153288,3386.9,3386.1,3.55]
[1719710960462,0.48753288,3386.8,3386.1,3.55]
[1719710960663,0.03303384,3386.8,3386.1,3.55]
[1719710960972,0.03303384,3386.8,3386.1,4.41]
[1719710963909,0.03303384,3386.8,3386.1,3.55]
[1719710966875,0.86,3386.6,3386.1,3.0]
[1719710967089,0.33733338,3386.5,3385.7,2.2521]
[1719710967264,0.33733338,3386.5,3385.8,0.55]
[1719710967265,0.0328629,3386.5,3385.8,0.55]
[1719710967470,0.0328629,3386.5,3385.8,3.55]
[1719710971523,0.0328629,3386.5,3385.8,4.41]
[1719710972016,0.03281877,3386.4,3385.8,4.41]
[1719710972209,19.58993058,3386.6,3385.8,4.41]
[1719710972517,0.03278841,3386.3,3385.8,4.41]
[1719710972696,19.58993058,3386.6,3385.8,4.41]
[1719710972877,0.03275805,3386.2,3385.8,4.41]
[1719710973081,19.58993058,3386.6,3385.8,4.41]
[1719710973312,0.03272769,3386.1,3385.8,4.41]
[1719710973623,0.03269732,3386.0,3385.8,4.41]
[1719710973795,19.58993058,3386.5,3385.8,4.41]
[1719710974003,0.03281877,3386.4,3386.1,2.2521]
[1719710974212,0.03281877,3386.4,3386.2,0.55]
[1719710974732,0.03281877,3386.4,3386.2,3.55]
[1719710976126,0.03281877,3386.4,3386.2,0.55]
[1719710976330,0.03281877,3386.4,3386.1,0.55]
[1719710978122,6.71249823,3386.6,3386.1,0.55]
[1719710978338,0.0327716,3386.3,3386.1,0.55]
[1719710978557,6.71249823,3386.6,3386.1,0.55]
[1719710978760,0.03270412,3386.2,3386.1,2.8375]
[1719710978913,6.71249823,3386.6,3386.2,3.0]
[1719710979246,6.71249823,3386.6,3386.3,1.41]
[1719710983030,6.71249823,3386.6,3386.3,0.55]
[1719710983862,19.58993058,3386.8,3386.3,0.55]
[1719710984068,19.58993058,3387.0,3386.3,0.55]
[1719710985635,0.03291663,3386.9,3386.3,0.55]
[1719711001201,3.84689117,3386.9,3386.2,3.0]
[1719711001395,3.84689117,3386.9,3386.1,2.2875]
[1719711001396,2.4746,3386.8,3386.1,2.2875]
[1719711001611,2.4746,3386.8,3386.3,3.0]
[1719711001813,2.4746,3386.8,3386.1,2.2875]
[1719711001814,0.63214912,3386.7,3386.1,2.2875]
[1719711002690,3.3346,3386.6,3386.0,3.0]
[1719711002917,3.3346,3386.6,3385.8,2.3362]
[1719711003228,0.42079987,3386.5,3385.8,2.3362]
[1719711003639,0.42079987,3386.5,3385.8,5.3362]
[1719711003790,3.3346,3386.6,3385.8,5.3362]
[1719711004097,3.3346,3386.6,3385.9,0.55]
[1719711004298,2.4746,3386.5,3385.9,3.0]
[1719711004486,0.86,3386.4,3385.9,3.0]
[1719711004689,0.86,3386.4,3385.5,0.86]
[1719711004690,0.33346,3386.3,3385.5,0.86]
[1719711005090,0.33346,3386.3,3385.3,3.1962]
[1719711005291,2.4746,3386.1,3385.3,3.1962]
[1719711005699,2.4746,3386.1,3385.4,0.55]
[1719711006931,2.4746,3386.1,3385.4,3.0]
[1719711006932,0.86,3386.0,3385.4,3.0]
[1719711007094,2.4746,3385.9,3385.0,0.86]
[1719711007525,2.4746,3385.9,3384.9,3.0]
[1719711007739,2.4746,3385.9,3385.0,0.86]
[1719711008348,0.5960104,3385.8,3385.0,0.86]
[1719711009244,0.5960104,3385.8,3385.1,0.55]
[1719711010546,20.18594098,3385.8,3385.1,0.55]
[1719711011352,19.58993058,3385.8,3385.2,0.86]
[1719711016573,19.58993058,3385.8,3385.3,0.55]
[1719711017056,19.58993058,3385.8,3385.4,0.86]
[1719711017243,19.58993058,3385.8,3385.6,2.4996]
[1719711017576,19.58993058,3385.8,3385.6,5.4996]
[1719711017762,0.03233474,3385.7,3385.6,2.4996]
[1719711017966,19.58993058,3385.8,3385.6,3.0496]
[1719711018274,19.58993058,3385.8,3385.7,3.0]
[1719711018478,19.58993058,3385.8,3385.6,2.4996]
[1719711019239,19.58993058,3385.8,3385.5,3.0]
[1719711019438,19.58993058,3385.8,3385.6,0.55]
[1719711019634,19.58993058,3385.8,3385.3,3.55]
[1719711021378,22.08373058,3385.8,3385.3,3.55]
[1719711021585,25.04935346,3385.8,3385.1,3.0]
[1719711021767,0.86,3385.7,3384.6,4.542982]
[1719711021969,21.87639922,3385.7,3384.7,3.0]
[1719711022566,21.01639922,3385.7,3384.7,3.0]
[1719711022768,21.01639922,3385.7,3384.8,0.86]
[1719711022985,21.01639922,3385.7,3384.9,0.55]
[1719711023157,2.73358221,3385.6,3384.9,0.55]
[1719711024263,21.01639922,3385.7,3384.9,0.55]
[1719711025377,1.42646864,3385.7,3384.9,0.55]
[1719711025692,25.90935346,3385.8,3384.9,0.55]
[1719711029425,0.03234077,3385.7,3384.9,0.55]
[1719711029722,0.86,3385.6,3384.8,0.55]
[1719711029880,2.59416942,3385.5,3384.8,0.55]
[1719711030080,2.62636814,3385.5,3384.8,0.55]
[1719711031414,22.21629872,3385.5,3384.8,0.55]
[1719711031569,22.21629872,3385.5,3384.9,0.86]
[1719711031801,19.6221293,3385.5,3384.9,0.86]
[1719711037423,0.03219872,3385.5,3384.9,0.86]
[1719711037773,20.44993058,3385.7,3384.8,0.55]
[1719711037902,0.03223534,3385.4,3384.8,0.55]
[1719711038108,22.74430364,3385.7,3384.8,0.55]
[1719711038313,0.03220496,3385.3,3384.8,0.55]
[1719711038546,22.74430364,3385.7,3384.8,0.55]
[1719711038756,0.03217458,3385.2,3384.8,0.55]
[1719711039022,0.0321442,3385.1,3384.8,0.55]
[1719711039241,22.74430364,3385.7,3384.8,0.55]
[1719711039468,0.03211381,3385.0,3384.8,0.55]
[1719711039787,26.30242881,3385.5,3384.9,0.86]
[1719711043266,19.58993058,3385.7,3384.9,0.86]
[1719711044345,0.030801,3385.6,3384.9,0.86]
[1719711046444,0.030801,3385.6,3385.1,0.86]
[1719711046681,0.030801,3385.6,3385.1,3.86]
[1719711048442,0.030801,3385.6,3385.1,3.0]
[1719711048642,0.030801,3385.6,3385.0,5.4977]
[1719711048852,0.030801,3385.6,3385.1,0.55]
[1719711049039,0.030801,3385.6,3385.1,3.55]
[1719711049243,19.62073158,3385.6,3385.1,3.55]
[1719711050341,22.58943456,3385.6,3385.1,3.55]
[1719711050583,22.58943456,3385.6,3385.1,3.0]
[1719711050759,2.3316,3385.5,3384.6,0.86]
[1719711050970,0.030771,3385.4,3384.7,0.55]
[1719711055189,19.62070158,3385.4,3384.7,0.55]
[1719711056683,19.62070158,3385.4,3384.8,0.86]
[1719711057255,19.62070158,3385.4,3384.9,2.3378]
[1719711057456,19.62070158,3385.4,3384.9,5.3378]
[1719711060889,19.62070158,3385.4,3385.2,0.86]
[1719711061185,19.62070158,3385.4,3385.0,3.86]
[1719711061186,0.030771,3385.4,3385.0,3.86]
[1719711061390,19.58993058,3385.6,3385.1,0.55]
[1719711061597,0.03080969,3385.5,3385.1,0.55]
[1719711067209,19.62074027,3385.5,3385.1,0.55]
[1719711067359,19.62074027,3385.5,3385.1,1.19396416]
[1719711067560,19.62074027,3385.5,3385.4,0.86]
[1719711067831,19.62074027,3385.5,3385.4,3.7478]
[1719711067968,19.62074027,3385.5,3385.4,6.7478]
[1719711073217,0.03080969,3385.5,3385.4,6.7478]
[1719711073416,0.03080969,3385.5,3385.4,3.55]
[1719711073587,6.71249823,3385.8,3385.4,0.55]
[1719711073988,6.71249823,3385.8,3385.5,0.55]
[1719711074188,0.03092993,3385.7,3385.5,0.55]
[1719711074392,6.71249823,3385.8,3385.3,0.86]
[1719711074393,6.71249823,3385.8,3385.4,0.55]
[1719711074798,0.03092993,3385.7,3385.4,0.55]
[1719711075175,0.03089956,3385.6,3385.4,0.55]
[1719711075381,6.71249823,3385.8,3385.4,0.55]
[1719711075698,0.03092993,3385.7,3385.4,0.55]
[1719711075905,6.71249823,3385.8,3385.4,0.55]
[1719711076121,0.03089956,3385.6,3385.4,0.55]
[1719711076291,9.19249823,3385.8,3385.4,0.55]
[1719711076497,0.03086918,3385.5,3385.2,3.86]
[1719711076696,9.19249823,3385.8,3385.3,0.55]
[1719711077527,0.03092993,3385.7,3385.3,0.55]
[1719711077817,0.03089956,3385.6,3385.3,0.55]
[1719711078014,9.19249823,3385.8,3385.3,0.55]
[1719711078216,0.03092993,3385.7,3385.3,0.55]
[1719711078415,9.19249823,3385.8,3385.3,0.55]
[1719711078623,0.03092993,3385.7,3385.3,0.55]
[1719711078917,9.19249823,3385.8,3385.3,0.55]
[1719711079129,0.03089956,3385.6,3385.4,0.05907468]
[1719711079432,6.71249823,3386.2,3385.6,2.383]
[1719711079583,6.71249823,3386.5,3386.1,0.86]
[1719711080111,6.71249823,3386.5,3386.2,0.55]
[1719711085129,19.58993058,3386.8,3386.2,0.55]
[1719711089124,22.4987671,3386.8,3386.2,0.55]
[1719711089326,0.02871201,3386.7,3386.2,0.55]
[1719711089530,0.02871201,3386.7,3385.9,0.86]
[1719711089694,0.02871201,3386.7,3386.0,0.55]
[1719711092999,2.4459,3386.6,3386.0,0.55]
[1719711093316,0.0286513,3386.5,3386.0,0.55]
[1719711098360,0.0286513,3386.5,3385.5,2.3374]
[1719711098361,2.3884,3386.4,3385.9,0.55]
[1719711098500,2.3884,3386.4,3385.7,0.55]
[1719711098901,0.02871926,3386.3,3385.7,0.55]
[1719711107359,2.98667407,3386.3,3385.6,3.0]
[1719711107573,2.3884,3386.2,3385.1,2.3374]
[1719711107717,2.3884,3386.2,3385.4,0.86]
[1719711108063,0.02861383,3386.1,3385.4,0.86]
[1719711109369,0.02861383,3386.1,3385.5,0.55]
[1719711111839,0.02861383,3386.1,3385.6,0.86]
[1719711112042,0.02861383,3386.1,3385.7,0.55]
[1719711115646,21.97833058,3386.4,3385.7,0.55]
[1719711116130,0.02698359,3386.3,3385.7,0.55]
[1719711117636,0.02600594,3386.3,3385.7,0.55]
[1719711121628,0.02600594,3386.3,3385.8,0.86]
[1719711121924,0.02600594,3386.3,3385.9,0.55]
[1719711124197,0.02600594,3386.3,3385.7,0.55]
[1719711128493,2.2707,3386.2,3385.5,3.0]
[1719711128693,2.2707,3386.2,3385.3,0.86]
[1719711128944,0.02688228,3386.1,3385.3,0.86]
[1719711129355,0.02688228,3386.1,3385.5,0.86]
[1719711129934,0.02688228,3386.1,3385.6,0.55]
[1719711131103,0.02688228,3386.1,3385.6,3.55]
[1719711131508,0.02688228,3386.1,3385.7,0.86]
[1719711131708,0.02688228,3386.1,3385.8,0.55]
[1719711133493,0.02671784,3386.0,3385.9,2.4457]
[1719711133770,0.02671784,3386.0,3385.9,3.55]
[1719711134071,0.02673339,3386.0,3385.9,0.55]
[1719711134275,21.86063058,3386.5,3385.9,0.55]
[1719711134564,0.02685484,3386.4,3386.0,0.55]
[1719711135575,0.02685484,3386.4,3385.9,0.55]
[1719711136983,2.3643,3386.3,3385.8,3.0]
[1719711137129,2.3643,3386.3,3385.5,0.86]
[1719711137334,0.0268036,3386.2,3385.5,0.86]
[1719711138371,2.3643,3386.3,3385.5,0.86]
[1719711140252,3.7510643,3386.3,3385.5,0.86]
[1719711141466,0.21412093,3386.2,3385.5,0.86]
[1719711141653,3.7510643,3386.3,3385.5,0.86]
[1719711141855,0.2141207,3386.2,3385.5,0.86]
[1719711142054,3.7510643,3386.3,3385.5,0.86]
[1719711145362,2.3643,3386.3,3385.5,0.86]
[1719711145562,2.3643,3386.3,3385.6,0.55]
[1719711149689,2.3643,3386.3,3385.5,0.86]
[1719711153990,2.3643,3385.7,3384.7,2.79122826]
[1719711154319,2.3643,3385.7,3384.7,3.3156]
[1719711154872,2.3643,3385.7,3384.5,3.639007]
[1719711155081,2.3643,3385.5,3384.2,2.79122826]
[1719711155571,2.3643,3385.5,3384.6,0.86]
[1719711156305,2.3643,3385.5,3384.7,0.55]
[1719711156511,3.4573478,3385.5,3384.7,0.55]
[1719711156824,3.4573478,3385.5,3384.5,0.86]
[1719711156970,2.2686,3385.4,3384.6,0.55]
[1719711157173,2.69076478,3385.4,3384.6,0.55]
[1719711158814,0.86,3385.2,3384.6,0.55]
[1719711159139,2.2686,3385.1,3384.3,0.55]
[1719711161894,2.2686,3385.1,3384.4,0.86]
[1719711162100,2.2686,3385.1,3384.5,0.55]
[1719711164878,6.71249823,3385.4,3384.5,2.8790896]
[1719711165126,6.71249823,3385.4,3384.9,0.86]
[1719711168601,2.2686,3385.5,3384.9,0.86]
[1719711171929,2.2686,3385.5,3384.6,3.28790896]
[1719711172083,2.2686,3385.5,3384.7,1.41]
[1719711174137,0.86,3385.4,3384.6,3.0]
[1719711174338,2.4081,3385.3,3384.3,0.86]
[1719711174502,0.86,3385.2,3384.4,0.55]
[1719711174710,1.85805982,3385.2,3384.4,0.55]
[1719711175442,3.2681,3385.3,3384.4,0.55]
[1719711175970,2.4081,3385.3,3384.4,0.55]
[1719711176533,2.4081,3385.3,3384.5,0.86]
[1719711176704,2.4081,3385.3,3384.6,0.55]
[1719711179341,3.40615982,3385.3,3384.6,0.55]
[1719711180097,4.26615982,3385.3,3384.6,0.55]
[1719711180336,0.86,3385.1,3384.4,0.55]
[1719711180535,2.3797,3385.0,3384.4,0.55]
[1719711180746,2.3797,3385.0,3384.0,3.86]
[1719711180747,2.80347598,3385.0,3384.1,0.55]
[1719711180926,2.3797,3385.0,3384.1,0.55]
[1719711181700,0.86,3385.1,3383.7,2.2939]
[1719711181701,0.86,3384.5,3383.7,2.2939]
[1719711181901,0.86,3384.3,3383.2,3.477759]
[1719711182136,2.3797,3384.4,3383.5,0.86]
[1719711183443,2.3797,3384.4,3383.6,0.55]
[1719711183638,3.37491982,3384.4,3383.6,0.55]
[1719711184641,3.37491982,3384.4,3383.3,3.0]
[1719711184840,2.3797,3384.2,3383.2,3.0]
[1719711185142,2.3797,3384.2,3383.3,0.55]
[1719711186407,2.3797,3383.8,3382.7,0.206938]
[1719711186644,2.3797,3383.8,3382.9,0.86]
[1719711186845,2.3797,3383.8,3383.0,0.55]
[1719711187307,2.3797,3383.8,3383.1,0.86]
[1719711187508,2.3797,3383.8,3383.2,0.55]
[1719711187717,2.3797,3383.8,3383.3,0.86]
[1719711198372,3.28891982,3383.8,3383.2,0.55]
[1719711198819,2.4017,3383.7,3382.7,3.0]
[1719711199020,2.4017,3383.7,3382.9,0.86]
[1719711200114,2.4017,3383.7,3382.8,0.55]
[1719711200347,2.4017,3383.7,3382.9,0.86]
[1719711201332,2.4017,3383.7,3382.8,0.55]
[1719711201532,2.4017,3383.7,3382.9,0.86]
[1719711201727,3.49004181,3383.7,3382.9,0.86]
[1719711202162,2.4017,3383.7,3382.9,0.91911966]
[1719711202319,2.4017,3383.7,3382.8,0.55]
[1719711202518,2.4017,3383.7,3383.1,0.86]
[1719711209655,2.4017,3383.7,3382.8,0.55]
[1719711209865,2.4017,3383.7,3382.9,0.86]
[1719711210021,3.39911982,3383.7,3383.0,0.55]
[1719711210545,3.39911982,3383.7,3382.9,3.55]
[1719711210736,3.39911982,3383.7,3382.9,0.55]
[1719711212156,4.25911982,3383.7,3382.9,0.55]
[1719711213438,3.49886181,3383.6,3382.9,0.55]
[1719711213772,2.4017,3383.5,3382.8,0.86]
[1719711215423,2.4017,3383.5,3382.7,3.0]
[1719711215653,2.4017,3383.5,3381.6,0.40615226]
[1719711215654,2.4017,3383.0,3381.1,2.4293]
[1719711215872,6.71249823,3382.7,3382.0,0.86]
[1719711216455,2.4017,3382.6,3382.0,0.86]
[1719711217567,2.4017,3382.6,3381.8,3.0]
[1719711217773,2.4017,3382.6,3382.0,0.86]
[1719711220296,6.71249823,3382.7,3382.0,0.86]
[1719711220461,6.71249823,3382.7,3382.1,0.55]
[1719711220845,6.71249823,3382.7,3382.2,0.86]
[1719711221780,6.71249823,3382.7,3382.4,0.86]
[1719711225093,2.3948,3382.9,3382.4,0.86]
[1719711229634,6.71249823,3383.2,3382.8,0.86]
[1719711229834,21.98473058,3383.3,3382.8,0.86]
[1719711231420,21.98473058,3383.3,3382.5,0.55]
[1719711231633,21.98473058,3383.3,3382.6,0.86]
[1719711231797,21.98473058,3383.3,3382.7,0.55]
[1719711232117,24.96447046,3383.3,3382.7,0.55]
[1719711234121,5.37453988,3383.3,3382.7,0.55]
[1719711236318,2.3948,3383.3,3382.7,0.55]
[1719711238547,2.3948,3383.3,3382.7,2.898]
[1719711238719,2.3948,3383.3,3382.8,3.0]
[1719711241618,2.3948,3383.3,3382.4,0.86]
[1719711241935,2.22249006,3383.2,3382.5,0.55]
[1719711242131,2.22249006,3383.2,3382.5,3.55]
[1719711242293,2.3948,3383.3,3382.5,3.55]
[1719711242799,2.3948,3383.3,3382.6,0.86]
[1719711248451,19.58993058,3383.5,3382.6,0.86]
[1719711248743,19.58993058,3383.5,3383.0,0.86]
[1719711251945,26.30242881,3383.6,3383.0,0.86]
[1719711258051,2.2886,3383.7,3383.0,0.86]
[1719711258250,3.83346,3383.7,3383.0,0.86]
[1719711259351,3.83346,3383.7,3382.8,3.0]
[1719711259553,0.21417751,3383.6,3382.8,3.0]
[1719711260050,3.83346,3383.7,3382.8,3.0]
[1719711260250,0.21418923,3383.6,3382.8,3.0]
[1719711260463,0.49076492,3383.5,3382.8,3.0]
[1719711261972,3.3451,3383.4,3382.8,3.0]
[1719711262138,0.86,3383.2,3382.4,3.0]
[1719711262475,2.4851,3383.1,3382.2,3.2795]
[1719711262676,2.4851,3383.1,3382.3,3.0]
[1719711262677,0.21419809,3383.0,3382.3,3.0]
[1719711262845,0.35592981,3383.0,3382.3,3.0]
[1719711263031,0.57010077,3383.0,3382.3,3.0]
[1719711263233,1.43010077,3383.0,3382.3,3.0]
[1719711263572,0.21416667,3382.9,3382.3,3.0]
[1719711263805,0.60568632,3382.9,3382.3,3.0]
[1719711264110,0.60568632,3382.9,3382.4,0.55]
[1719711264277,0.39151965,3382.9,3382.4,0.55]
[1719711265175,0.60568391,3382.9,3382.4,0.55]
[1719711265375,0.60568391,3382.9,3382.3,3.0]
[1719711265592,2.35407145,3382.8,3382.2,0.86]
[1719711269294,0.39151965,3382.9,3382.2,0.86]
[1719711279335,19.58993058,3383.0,3382.2,0.86]
[1719711281828,22.07503058,3383.1,3382.2,0.86]
[1719711282851,22.07503058,3383.1,3382.3,2.3153]
[1719711283138,22.07503058,3383.1,3382.3,5.3153]
[1719711283442,2.96475288,3383.0,3382.3,5.3153]
[1719711283643,2.96475288,3383.0,3382.4,0.86]
[1719711283853,2.96475288,3383.0,3382.4,3.86]
[1719711287661,19.58993058,3383.1,3382.4,3.86]
[1719711287867,19.58993058,3383.1,3382.7,2.3153]
[1719711288052,19.58993058,3383.1,3382.7,5.3153]
[1719711288776,19.58993058,3383.1,3382.7,2.3153]
[1719711289445,20.14931783,3383.1,3382.7,2.3153]
[1719711291631,20.14931783,3383.1,3382.5,3.0]
[1719711291849,20.14931783,3383.1,3382.4,3.86]
[1719711292165,20.14931783,3383.1,3382.4,3.0]
[1719711292349,2.68618161,3383.0,3382.3,5.3153]
[1719711292555,2.68618161,3383.0,3382.4,0.55]
[1719711292758,2.68618161,3383.0,3382.4,3.55]
[1719711300423,6.57358053,3382.9,3382.4,3.0]
[1719711300705,6.35953685,3382.9,3382.0,2.3093]
[1719711300923,2.86490136,3382.8,3382.0,2.3093]
[1719711301220,0.21401589,3382.7,3382.0,2.3093]
[1719711303406,2.65088547,3382.8,3382.0,2.3093]
[1719711303607,0.21402598,3382.7,3382.0,2.3093]
[1719711304105,1.07402598,3382.7,3382.0,2.3093]
[1719711304304,0.86,3382.5,3381.6,0.86]
[1719711304611,0.86,3382.3,3381.7,2.8593]
[1719711304817,0.86,3382.3,3381.8,3.0]
[1719711304818,0.21402598,3382.3,3381.8,3.0]
[1719711306497,1.31269196,3382.3,3381.8,3.0]
[1719711306687,1.09866726,3382.3,3381.8,3.0]
[1719711310400,22.25453229,3382.4,3381.8,3.0]
[1719711311683,2.66460171,3382.4,3381.8,3.0]
[1719711315445,0.86,3382.2,3381.8,3.0]
[1719711315784,0.86,3382.0,3381.2,2.3093]
[1719711315950,0.86,3382.0,3380.9,2.3093]
[1719711315951,0.3355,3381.9,3380.9,2.3093]
[1719711316141,2.495,3381.8,3381.0,0.86]
[1719711316486,3.355,3381.8,3380.9,2.3093]
[1719711316654,1.02814973,3381.7,3380.7,0.86]
[1719711317978,1.02814973,3381.7,3380.8,0.55]
[1719711318185,0.43831497,3381.6,3380.8,0.55]
[1719711318967,0.86,3381.4,3380.6,0.55]
[1719711319152,0.86,3381.4,3380.5,0.55]
[1719711319350,0.86,3381.4,3380.5,1.41]
[1719711319559,0.31948,3381.3,3380.5,1.41]
[1719711320649,0.31948,3381.3,3380.5,4.41]
[1719711326067,0.31948,3381.3,3380.7,0.86]
[1719711326264,9.04729823,3381.5,3380.7,0.86]
[1719711327294,9.04729823,3381.5,3381.0,0.86]
[1719711327591,6.71249823,3381.5,3381.3,0.86]
[1719711331105,6.71249823,3381.5,3381.4,0.86]
[1719711331421,6.71249823,3381.5,3381.0,3.0]
[1719711331575,6.71249823,3381.5,3381.2,0.86]
[1719711331779,0.07777072,3381.4,3381.2,0.86]
[1719711332105,6.71249823,3381.5,3381.2,0.86]
[1719711332475,0.07781692,3381.4,3381.2,0.86]
[1719711332703,6.71249823,3382.0,3381.2,0.86]
[1719711332704,8.99097129,3382.0,3381.2,0.86]
[1719711332911,0.07778812,3381.3,3381.2,0.86]
[1719711333110,8.99097129,3382.0,3381.2,1.41]
[1719711333310,0.07778812,3381.3,3381.2,1.41]
[1719711333509,3.00453685,3381.9,3381.2,1.41]
[1719711333730,0.07778812,3381.3,3381.2,1.41]
[1719711334040,3.00453685,3381.9,3381.2,1.41]
[1719711334245,0.07778812,3381.3,3381.2,1.41]
[1719711334434,1.43303081,3381.8,3381.2,1.41]
[1719711334600,0.07778812,3381.3,3381.2,1.41]
[1719711334795,1.43303081,3381.8,3381.2,1.41]
[1719711334993,0.02778812,3381.3,3381.2,1.41]
[1719711335234,6.71249823,3382.0,3381.2,1.41]
[1719711335395,9.66222111,3382.0,3381.2,1.41]
[1719711335898,0.07629422,3381.9,3381.2,1.41]
[1719711336324,2.3348,3381.8,3381.1,0.86]
[1719711336519,1.29333153,3381.7,3381.1,0.86]
[1719711336835,1.36928712,3381.7,3381.1,0.86]
[1719711337460,1.36928712,3381.7,3380.7,3.0]
[1719711337732,2.4047,3381.6,3380.6,0.86]
[1719711337896,2.86110871,3381.6,3380.6,0.86]
[1719711338101,0.075898,3381.5,3380.6,0.86]
[1719711339347,0.935898,3381.5,3380.6,0.86]
[1719711339554,0.50903382,3381.4,3380.6,0.86]
[1719711339707,2.4047,3381.3,3380.6,0.86]
[1719711339905,2.48054041,3381.3,3380.4,3.86]
[1719711340103,0.3340598,3381.2,3380.4,3.86]
[1719711340512,0.07573526,3381.1,3380.4,3.86]
[1719711341762,0.07573526,3381.1,3380.6,0.86]
[1719711342456,2.4047,3381.3,3380.8,0.86]
[1719711342656,0.07570646,3381.0,3380.8,0.86]
[1719711342804,2.4047,3381.3,3380.8,0.86]
[1719711343349,0.07576406,3381.2,3380.8,0.86]
[1719711343709,2.4047,3381.3,3380.8,0.86]
[1719711344044,0.07573526,3381.1,3380.8,0.86]
[1719711344231,0.07576406,3381.2,3380.8,0.86]
[1719711344416,19.58993058,3381.3,3380.5,0.05915941]
[1719711344616,19.58993058,3381.3,3381.1,0.86]
[1719711344829,0.07576406,3381.2,3381.1,0.86]
[1719711345142,19.58993058,3381.5,3381.1,0.86]
[1719711345342,0.07566757,3381.2,3381.1,0.86]
[1719711345643,19.58993058,3381.5,3381.1,0.86]
[1719711345944,22.59446743,3381.5,3381.1,0.86]
[1719711346110,6.64663124,3387.0,3381.5,2.3225]
[1719711346111,2.4047,3382.7,3381.5,2.3225]
[1719711346453,2.4047,3383.5,3382.6,0.86]
[1719711346657,0.21417855,3383.4,3381.6,3.0]
[1719711346805,0.86,3383.3,3382.3,0.86]
[1719711347323,1.07416055,3383.3,3382.3,0.86]
[1719711347514,0.24047,3383.4,3382.8,0.86]
[1719711347718,0.45463508,3383.4,3382.8,0.86]
[1719711347920,0.86,3383.3,3381.6,3.31975568]
[1719711348265,0.86,3383.3,3382.3,0.86]
[1719711348469,0.350517,3383.2,3382.3,0.86]
[1719711349358,0.350517,3383.2,3381.7,2.61]
[1719711349659,0.350517,3383.2,3381.8,3.0]
[1719711349870,0.350517,3383.2,3381.9,0.55]
[1719711353430,7.06301523,3383.2,3381.9,0.55]
[1719711359455,0.06104115,3383.1,3381.9,0.55]
[1719711360668,0.06104115,3383.1,3382.0,0.55]
[1719711360867,0.06104115,3383.1,3381.7,0.55]
[1719711361022,2.4288,3382.9,3381.7,0.55]
[1719711361479,0.06096708,3382.8,3381.7,0.55]
[1719711362273,0.06096708,3382.8,3381.5,0.55]
[1719711362571,6.77346531,3382.8,3381.4,0.55]
[1719711371476,6.77346531,3382.8,3381.9,0.858]
[1719711371672,6.77346531,3382.8,3382.0,0.55]
[1719711374612,6.77346531,3382.8,3382.5,0.858]
[1719711374909,6.77346531,3382.8,3382.6,0.55]
[1719711374910,0.06096708,3382.8,3382.6,0.55]
[1719711375122,2.4288,3383.1,3382.6,0.55]
[1719711375436,0.0587539,3383.0,3382.7,0.858]
[1719711375573,0.0587539,3383.0,3382.6,0.55]
[1719711375774,0.0587539,3383.0,3382.6,0.60912197]
[1719711376280,0.0587539,3383.0,3382.7,0.858]
[1719711376723,0.05877239,3382.9,3382.8,0.55]
[1719711377024,29.30696566,3383.3,3382.8,0.55]
[1719711377229,0.05877239,3382.9,3382.6,0.55]
[1719711377371,29.30696566,3383.3,3382.5,0.55]
[1719711377570,0.05880878,3382.8,3382.5,0.55]
[1719711377789,26.30242881,3383.3,3382.5,0.55]
[1719711378273,0.05892385,3383.2,3382.5,0.55]
[1719711378798,0.05892385,3383.2,3382.6,0.858]
[1719711379001,0.05892385,3383.2,3382.7,0.55]